bitfinex/quotes_SOLUSD_20240725
["timestamp","ask_amount","ask_price","bid_price","bid_amount"]
[1721898874078,389.2,171.48,171.39,5.8345]
[1721898874079,23.3928,171.45,171.39,5.8345]
[1721898874280,5.8329,171.44,171.39,5.8345]
[1721898874480,15.38675,171.49,171.36,15.0007]
[1721898874821,20.0,171.48,171.4,5.8342]
[1721898875015,17.56,171.47,171.4,5.8342]
[1721898875178,37.56,171.46,171.4,5.8342]
[1721898875784,5.8326,171.45,171.4,5.8342]
[1721898875996,5.8326,171.45,171.39,5.8345]
[1721898876197,5.8326,171.45,171.4,5.8342]
[1721898877010,20.0,171.46,171.41,5.8339]
[1721898877211,37.56,171.47,171.41,5.8339]
[1721898877838,5.833,171.44,171.39,5.8345]
[1721898878187,17.56,171.44,171.36,15.0007]
[1721898878496,5.8336,171.43,171.36,15.0007]
[1721898878698,5.8336,171.43,171.37,5.8352]
[1721898878997,5.8336,171.43,171.38,5.8349]
[1721898879396,5.8328,171.45,171.36,15.0007]
[1721898879780,5.833,171.44,171.39,5.8345]
[1721898880389,5.8326,171.45,171.39,5.8345]
[1721898880591,5.8326,171.45,171.4,5.8342]
[1721898881097,5.8326,171.45,171.39,5.8345]
[1721898882291,23.3939,171.42,171.36,15.0007]
[1721898882490,50.8332,171.44,171.38,5.8349]
[1721898882888,5.8332,171.44,171.39,5.8345]
[1721898883093,5.8326,171.45,171.39,5.8345]
[1721898883292,5.8326,171.45,171.4,5.8342]
[1721898883508,5.8326,171.45,171.39,5.8345]
[1721898886197,17.56,171.45,171.37,5.8349]
[1721898886411,45.0,171.44,171.37,5.8349]
[1721898886814,5.8334,171.43,171.38,5.8348]
[1721898887204,17.56,171.43,171.36,15.0007]
[1721898887501,68.393,171.44,171.38,5.8347]
[1721898887700,5.8333,171.43,171.38,5.8347]
[1721898888303,68.3929,171.44,171.38,5.8347]
[1721898889004,17.56,171.42,171.36,15.0007]
[1721898889208,17.56,171.4,171.32,15.3291]
[1721898889412,62.56,171.39,171.33,5.8364]
[1721898889597,5.8354,171.37,171.32,15.3291]
[1721898889800,5.8354,171.37,171.32,21.166]
[1721898890001,5.8358,171.36,171.32,15.3291]
[1721898890405,17.56,171.37,171.32,21.166]
[1721898890891,23.3953,171.37,171.32,21.166]
[1721898891912,23.395,171.38,171.33,5.8365]
[1721898892124,23.3954,171.37,171.32,15.3291]
[1721898892420,5.8357,171.36,171.31,12.013]
[1721898893193,23.3953,171.37,171.31,12.013]
[1721898893424,23.3953,171.37,171.32,5.8369]
[1721898894406,17.56,171.38,171.28,15.3617]
[1721898894721,17.56,171.38,171.28,21.1997]
[1721898894722,23.3966,171.34,171.28,21.1997]
[1721898894908,23.3966,171.34,171.29,5.838]
[1721898895113,17.56,171.34,171.29,5.838]
[1721898895433,23.3964,171.34,171.29,5.838]
[1721898895627,23.3961,171.35,171.3,5.8376]
[1721898896127,17.56,171.35,171.3,5.8376]
[1721898896427,17.56,171.35,171.31,5.8373]
[1721898896721,23.3953,171.37,171.31,5.8373]
[1721898896907,23.396,171.35,171.28,15.3617]
[1721898897315,68.3964,171.34,171.29,5.8379]
[1721898897515,62.56,171.34,171.29,5.8379]
[1721898898427,62.56,171.34,171.28,15.3617]
[1721898898809,20.0,171.38,171.28,15.3617]
[1721898899011,50.8356,171.37,171.31,5.837]
[1721898899410,5.8353,171.37,171.32,5.8368]
[1721898899829,23.3953,171.37,171.31,5.8372]
[1721898900444,62.56,171.36,171.29,5.8377]
[1721898901013,17.56,171.35,171.29,5.8377]
[1721898901244,5.836,171.35,171.3,5.8377]
[1721898903013,50.8357,171.36,171.31,5.8372]
[1721898903218,5.8361,171.35,171.3,5.8376]
[1721898903618,68.3957,171.36,171.31,5.8373]
[1721898904234,5.836,171.35,171.3,5.8376]
[1721898904535,5.8367,171.33,171.28,21.2]
[1721898904738,23.3964,171.34,171.28,21.2]
[1721898905335,23.3964,171.34,171.29,5.8378]
[1721898905513,17.56,171.35,171.28,15.3617]
[1721898905709,17.56,171.35,171.28,16.52924246]
[1721898906110,45.0,171.36,171.28,16.52924246]
[1721898906111,5.835,171.38,171.32,5.8367]
[1721898906322,17.56,171.39,171.34,5.8362]
[1721898907132,23.3946,171.39,171.34,5.8362]
[1721898907321,17.56,171.4,171.35,5.8359]
[1721898907518,5.8342,171.41,171.36,5.8356]
[1721898907920,5.8336,171.42,171.37,5.8353]
[1721898908121,5.834,171.41,171.35,5.8357]
[1721898908335,5.834,171.41,171.36,5.8355]
[1721898909321,5.8344,171.4,171.35,5.8359]
[1721898909516,29.48,171.43,171.28,36.52913339]
[1721898909841,62.56,171.42,171.37,5.8352]
[1721898910017,68.3939,171.42,171.29,65.0]
[1721898910218,68.3939,171.42,171.36,5.8355]
[1721898910914,17.56,171.4,171.28,16.52913339]
[1721898911127,23.3946,171.39,171.28,16.52898823]
[1721898911344,5.8345,171.4,171.34,5.8362]
[1721898911640,5.8352,171.38,171.28,16.52898823]
[1721898911859,5.8352,171.38,171.28,15.3617]
[1721898912139,5.8352,171.38,171.33,5.8364]
[1721898912338,5.835,171.38,171.33,5.8364]
[1721898913237,23.3947,171.39,171.33,5.8364]
[1721898913415,5.8347,171.39,171.34,5.8363]
[1721898913615,17.56,171.38,171.28,15.3617]
[1721898913848,17.56,171.38,171.31,5.8372]
[1721898914158,23.395,171.38,171.32,5.8369]
[1721898914521,62.56,171.37,171.28,15.3617]
[1721898914830,17.56,171.35,171.29,5.8379]
[1721898915036,68.3966,171.34,171.28,21.2]
[1721898915331,23.3966,171.34,171.28,21.2]
[1721898915525,23.3968,171.33,171.27,11.9058]
[1721898915736,5.8374,171.31,171.25,5.8392]
[1721898915938,5.8371,171.32,171.26,5.8389]
[1721898916133,5.8371,171.32,171.27,5.8386]
[1721898916342,23.3967,171.33,171.28,5.8383]
[1721898916642,17.56,171.33,171.28,5.8383]
[1721898917825,23.3974,171.31,171.25,5.8391]
[1721898918037,23.3974,171.31,171.24,16.3789]
[1721898918038,17.56,171.31,171.27,5.8387]
[1721898918235,17.56,171.33,171.25,5.8391]
[1721898918440,23.3974,171.31,171.26,5.8389]
[1721898918638,17.56,171.31,171.26,5.8389]
[1721898920254,5.8374,171.31,171.26,5.8389]
[1721898920461,23.3974,171.31,171.26,5.8389]
[1721898921435,17.56,171.33,171.24,16.3789]
[1721898921633,17.56,171.31,171.24,16.3789]
[1721898922055,29.48,171.34,171.24,16.3789]
[1721898922345,20.0,171.33,171.29,5.838]
[1721898923247,25.8367,171.33,171.28,5.8383]
[1721898923829,5.8374,171.31,171.26,5.8387]
[1721898924031,5.8374,171.31,171.24,16.3789]
[1721898924032,23.3979,171.3,171.24,22.2185]
[1721898924425,23.3979,171.3,171.24,16.3789]
[1721898924426,5.8389,171.27,171.24,16.3789]
[1721898924748,5.8381,171.29,171.23,5.8398]
[1721898924929,5.8384,171.28,171.23,5.8398]
[1721898925127,17.56,171.32,171.24,5.8397]
[1721898925322,17.56,171.3,171.24,5.8397]
[1721898925842,23.3984,171.28,171.22,5.8401]
[1721898926635,17.56,171.28,171.2,15.8995]
[1721898926946,5.8391,171.26,171.2,15.8995]
[1721898927146,5.8391,171.26,171.21,5.8405]
[1721898927534,5.8388,171.27,171.21,5.8405]
[1721898927727,17.56,171.24,171.15,9.14001808]
[1721898927930,17.56,171.24,171.18,5.8415]
[1721898927931,23.3997,171.24,171.18,5.8415]
[1721898928135,33.2855,171.27,171.19,5.8411]
[1721898928338,65.0,171.26,171.2,5.841]
[1721898928550,70.8391,171.26,171.21,5.8407]
[1721898928739,5.8391,171.26,171.21,5.8407]
[1721898929240,44.9316,171.31,171.16,20.0]
[1721898929542,44.9316,171.31,171.25,5.8391]
[1721898929543,5.8377,171.31,171.25,5.8391]
[1721898929757,5.8377,171.31,171.19,1.16788655]
[1721898929938,35.3166,171.34,171.28,5.8383]
[1721898930138,33.7553,171.35,171.29,5.8377]
[1721898930351,5.8356,171.37,171.27,6.554]
[1721898930558,16.3424,171.41,171.28,37.10709922]
[1721898930849,268.6824,171.44,171.29,1.16718018]
[1721898931143,5.8343,171.4,171.34,5.8362]
[1721898931344,17.56,171.43,171.3,1.16732208]
[1721898931546,23.3942,171.41,171.35,5.8358]
[1721898931752,5.8343,171.4,171.34,5.8363]
[1721898932042,14.5824,171.44,171.33,5.8366]
[1721898932043,17.56,171.39,171.33,5.8366]
[1721898932246,17.56,171.38,171.32,5.8369]
[1721898933044,5.837,171.32,171.26,5.8387]
[1721898933248,23.3967,171.33,171.27,5.8386]
[1721898933549,23.3967,171.33,171.24,15.0749]
[1721898933740,68.3971,171.32,171.26,5.8387]
[1721898934051,23.3978,171.3,171.24,5.8397]
[1721898934251,45.0,171.32,171.2,15.6067]
[1721898934457,50.837,171.32,171.27,5.8386]
[1721898934760,45.0,171.32,171.28,5.8383]
[1721898934952,51.1298,171.37,171.23,20.0]
[1721898935156,65.0,171.36,171.24,1.167641]
[1721898935346,88.3959,171.36,171.3,5.8375]
[1721898935533,50.8359,171.36,171.3,5.8375]
[1721898936255,23.396,171.35,171.3,5.8375]
[1721898936462,23.396,171.35,171.29,5.8377]
[1721898936647,23.396,171.35,171.3,5.8375]
[1721898938170,17.56,171.35,171.23,21.16758458]
[1721898938345,17.56,171.35,171.3,5.8374]
[1721898939453,45.0,171.36,171.24,21.16755497]
[1721898939846,45.0,171.36,171.31,5.8373]
[1721898940056,45.0,171.36,171.3,5.8376]
[1721898940449,45.0,171.36,171.26,6.1943]
[1721898940643,45.0,171.36,171.26,7.3618057]
[1721898940851,45.0,171.36,171.31,5.8373]
[1721898941163,45.0,171.36,171.26,6.1943]
[1721898941164,62.56,171.36,171.3,5.8376]
[1721898941367,5.8362,171.35,171.29,5.838]
[1721898942355,5.8365,171.34,171.29,5.838]
[1721898942560,17.56,171.32,171.26,6.1943]
[1721898942760,23.3973,171.32,171.27,5.8386]
[1721898943367,17.56,171.3,171.2,7.4803177]
[1721898943567,5.838,171.29,171.17,28.35704094]
[1721898943767,5.838,171.29,171.17,27.18889986]
[1721898944168,5.838,171.29,171.17,7.18889986]
[1721898944680,23.3977,171.3,171.25,5.8393]
[1721898945976,17.56,171.28,171.18,1.16792882]
[1721898946189,62.56,171.27,171.2,5.8408]
[1721898946365,5.8393,171.26,171.2,5.8408]
[1721898946676,23.3981,171.29,171.23,5.8397]
[1721898946859,5.8385,171.28,171.23,5.8397]
[1721898947050,5.838,171.3,171.16,20.0]
[1721898947250,20.0,171.29,171.16,20.0]
[1721898947468,5.8384,171.28,171.23,5.84]
[1721898947647,70.838,171.29,171.24,5.8397]
[1721898947853,65.0,171.29,171.16,1.16795709]
[1721898948051,65.0,171.29,171.16,20.0]
[1721898948250,5.8387,171.28,171.22,5.8403]
[1721898948459,70.8381,171.29,171.16,20.0]
[1721898948889,5.8384,171.28,171.23,5.84]
[1721898949365,5.8388,171.27,171.22,5.8403]
[1721898949785,5.8388,171.27,171.21,5.8407]
[1721898950165,5.8391,171.26,171.21,5.8407]
[1721898950586,5.8386,171.28,171.22,5.8403]
[1721898950964,5.8386,171.28,171.23,5.84]
[1721898952279,88.3981,171.29,171.24,5.8396]
[1721898952674,82.56,171.29,171.25,5.8393]
[1721898953640,82.56,171.29,171.17,21.16796047]
[1721898953641,88.3981,171.29,171.24,5.8397]
[1721898954593,5.8384,171.28,171.23,5.84]
[1721898954794,22.2035,171.31,171.19,40.0]
[1721898955002,29.48,171.33,171.2,1.167817]
[1721898955003,20.0,171.3,171.2,1.167817]
[1721898955296,25.838,171.3,171.24,5.8396]
[1721898955509,25.838,171.3,171.25,5.8393]
[1721898956009,25.838,171.3,171.15,9.14954441]
[1721898956010,9.14543025,171.35,171.26,20.0]
[1721898956173,5.8353,171.37,171.31,5.837]
[1721898956500,5.8356,171.36,171.31,5.837]
[1721898957074,21.6717,171.39,171.33,5.8364]
[1721898957276,5.835,171.38,171.33,5.8364]
[1721898959186,17.56,171.38,171.31,5.8371]
[1721898959395,5.836,171.35,171.3,5.8377]
[1721898959922,5.836,171.35,171.25,30.64752246]
[1721898959923,5.8356,171.37,171.25,30.64752246]
[1721898960096,5.8356,171.37,171.27,20.0]
[1721898960395,33.3968,171.39,171.25,29.48]
[1721898960604,5.8357,171.36,171.31,5.8371]
[1721898960783,5.8353,171.37,171.32,5.8369]
[1721898961095,5.8353,171.37,171.31,5.8372]
[1721898961300,62.56,171.38,171.3,5.8377]
[1721898961893,5.8365,171.34,171.29,5.8379]
[1721898962096,20.0,171.37,171.24,20.0]
[1721898962097,17.56,171.37,171.24,20.0]
[1721898962281,82.56,171.36,171.24,21.1675199]
[1721898962482,5.8374,171.31,171.25,5.839]
[1721898963096,5.8374,171.31,171.26,5.8389]
[1721898963395,23.3974,171.31,171.26,5.8389]
[1721898963607,17.56,171.31,171.24,5.8394]
[1721898963818,29.48,171.34,171.22,21.663]
[1721898963991,29.48,171.34,171.22,41.663]
[1721898963992,5.837,171.33,171.22,41.663]
[1721898964314,35.3164,171.34,171.29,5.838]
[1721898964693,5.8362,171.35,171.3,5.8376]
[1721898965012,17.56,171.34,171.28,5.8381]
[1721898965225,17.56,171.34,171.27,5.8386]
[1721898965226,5.837,171.32,171.27,5.8386]
[1721898965880,5.837,171.32,171.27,5.8387]
[1721898966082,5.8373,171.31,171.26,5.8388]
[1721898967498,17.56,171.3,171.2,7.27340143]
[1721898967714,5.838,171.29,171.18,58.38899986]
[1721898968178,29.48,171.32,171.18,58.38899986]
[1721898968382,23.3973,171.32,171.27,5.8386]
[1721898968790,5.8374,171.31,171.25,5.8391]
[1721898969182,5.8374,171.31,171.19,28.4412352]
[1721898969183,5.8374,171.31,171.26,5.8389]
[1721898969389,82.56,171.36,171.21,40.0]
[1721898969604,82.56,171.36,171.23,20.0]
[1721898969803,82.56,171.36,171.3,5.8375]
[1721898969804,68.3957,171.36,171.3,5.8375]
[1721898970013,29.48,171.37,171.23,40.0]
[1721898970186,29.48,171.37,171.24,1.16752301]
[1721898970385,47.04,171.37,171.24,46.16752301]
[1721898970786,5.8357,171.36,171.24,46.16752301]
[1721898971588,5.8353,171.37,171.26,42.4853]
[1721898972193,5.8357,171.36,171.26,23.65278209]
[1721898972391,5.8357,171.36,171.26,22.4853]
[1721898972593,5.8357,171.36,171.26,23.6527845]
[1721898972791,5.8362,171.35,171.3,5.8374]
[1721898972989,17.56,171.34,171.26,22.4853]
[1721898973184,62.56,171.33,171.22,6.0437]
[1721898973385,29.48,171.37,171.22,6.0437]
[1721898973386,422.5968,171.39,171.22,21.1105]
[1721898973687,23.3956,171.37,171.31,5.8373]
[1721898974297,23.3956,171.37,171.32,5.8369]
[1721898974528,5.8356,171.37,171.32,5.8369]
[1721898975409,5.835,171.38,171.25,20.0]
[1721898975612,5.835,171.38,171.32,5.8369]
[1721898975782,5.835,171.38,171.26,1.16735735]
[1721898975783,5.8357,171.36,171.26,1.16735735]
[1721898976089,5.8357,171.36,171.31,5.8372]
[1721898976502,5.8351,171.38,171.33,5.8366]
[1721898976902,23.3953,171.37,171.26,20.0]
[1721898977122,23.3953,171.37,171.25,1.16733119]
[1721898977292,5.835,171.38,171.33,5.8365]
[1721898977608,52.8743,171.41,171.35,5.836]
[1721898977803,52.8743,171.41,171.34,5.8363]
[1721898977804,5.8346,171.39,171.34,5.8363]
[1721898978012,23.3946,171.39,171.34,5.8363]
[1721898978707,23.3946,171.39,171.33,5.8366]
[1721898978913,5.835,171.38,171.33,5.8366]
[1721898979694,17.56,171.38,171.3,16.3131]
[1721898979987,62.56,171.37,171.26,15.588]
[1721898980188,17.56,171.38,171.26,15.588]
[1721898980588,20.0,171.4,171.33,5.8364]
[1721898980784,20.0,171.4,171.35,5.8359]
[1721898981002,20.0,171.4,171.27,70.64733565]
[1721898981281,29.48,171.41,171.29,20.0]
[1721898981600,5.8342,171.41,171.36,5.8355]
[1721898981801,5.8342,171.41,171.36,5.8356]
[1721898981802,5.8339,171.41,171.36,5.8356]
[1721898982790,5.8339,171.41,171.35,5.8359]
[1721898983314,5.8339,171.41,171.36,5.8356]
[1721898985598,5.8336,171.42,171.37,5.8353]
[1721898985800,23.3933,171.43,171.38,5.8348]
[1721898986803,23.393,171.44,171.39,5.8346]
[1721898987115,5.8332,171.43,171.38,5.8348]
[1721898989430,17.56,171.44,171.39,5.8345]
[1721898989739,23.3918,171.48,171.36,1.16689142]
[1721898989911,23.3918,171.48,171.37,1.16666398]
[1721898990521,5.8318,171.48,171.36,41.16668022]
[1721898990828,5.8318,171.48,171.37,45.0]
[1721898991209,5.8319,171.47,171.37,45.0]
[1721898991417,5.8316,171.48,171.37,45.0]
[1721898991609,5.8316,171.48,171.38,20.0]
[1721898991810,5.8316,171.48,171.37,45.0]
[1721898992328,5.8319,171.47,171.36,41.16668022]
[1721898993462,5.8316,171.48,171.36,41.16668022]
[1721898993633,0.80845,171.49,171.38,20.0]
[1721898994316,6.63965,171.49,171.38,20.0]
[1721898995550,0.80845,171.49,171.38,20.0]
[1721898995714,0.80845,171.49,171.39,20.0]
[1721898996120,0.80845,171.49,171.39,21.16651571]
[1721898996338,14.72,171.47,171.42,14.72]
[1721898996642,14.72,171.46,171.42,14.72]
[1721898997244,14.72,171.46,171.41,14.72]
[1721898997744,14.72,171.45,171.36,98.88]
[1721898997912,14.72,171.44,171.4,14.72]
[1721898998313,14.72,171.44,171.39,14.72]
[1721898998922,14.72,171.44,171.4,14.72]
[1721898999123,14.72,171.45,171.4,14.72]
[1721898999936,14.72,171.45,171.36,100.04666084]
[1721899000142,14.72,171.45,171.38,20.0]
[1721899000855,14.72,171.45,171.36,98.88]
[1721899001032,14.72,171.45,171.36,100.04663779]
[1721899001452,14.72,171.45,171.37,45.0]
[1721899001632,14.72,171.46,171.38,1.16661326]
[1721899001954,0.80845,171.49,171.37,45.0]
[1721899001955,14.72,171.45,171.37,46.16661497]
[1721899002546,14.72,171.45,171.36,78.88]
[1721899002733,14.72,171.45,171.36,80.0466743]
[1721899003377,14.72,171.45,171.36,100.0466743]
[1721899004159,14.72,171.45,171.36,80.0466743]
[1721899004459,0.80845,171.49,171.37,14.72]
[1721899004661,14.72,171.42,171.37,14.72]
[1721899004842,14.72,171.43,171.38,14.72]
[1721899005236,14.72,171.45,171.4,14.72]
[1721899007432,14.72,171.44,171.39,14.72]
[1721899008030,14.72,171.42,171.34,16.3051]
[1721899008236,14.72,171.42,171.37,14.72]
[1721899008464,23.3917,171.48,171.39,14.72]
[1721899008764,14.72,171.45,171.4,14.72]
[1721899009434,14.72,171.45,171.36,21.16668145]
[1721899009435,14.72,171.44,171.39,14.72]
[1721899010065,0.80845,171.49,171.41,14.72]
[1721899010236,14.72,171.47,171.42,14.72]
[1721899010875,14.72,171.46,171.42,14.72]
[1721899011072,14.72,171.46,171.41,14.72]
[1721899011283,14.72,171.45,171.4,14.72]
[1721899011784,14.72,171.46,171.41,14.72]
[1721899012146,14.72,171.45,171.41,14.72]
[1721899012861,14.72,171.45,171.4,14.72]
[1721899013374,14.72,171.44,171.39,14.72]
[1721899013565,14.72,171.45,171.4,14.72]
[1721899013760,14.72,171.45,171.36,60.04673116]
[1721899013967,14.72,171.45,171.4,14.72]
[1721899015277,14.72,171.44,171.39,14.72]
[1721899017485,0.80845,171.49,171.4,14.72]
[1721899017486,14.72,171.45,171.4,14.72]
[1721899018671,14.72,171.46,171.41,14.72]
[1721899019481,14.72,171.47,171.41,14.72]
[1721899021273,14.72,171.45,171.36,58.88]
[1721899021458,14.72,171.46,171.37,20.0]
[1721899022698,14.72,171.45,171.36,66.15324294]
[1721899022884,14.72,171.45,171.37,1.16671551]
[1721899023063,14.72,171.46,171.37,20.0]
[1721899023379,14.72,171.46,171.38,65.0]
[1721899023579,14.72,171.47,171.42,14.72]
[1721899027987,14.72,171.48,171.43,14.72]
[1721899028291,0.80845,171.49,171.44,14.72]
[1721899028473,15.52845,171.49,171.44,14.72]
[1721899028886,14.72,171.48,171.42,15.7087]
[1721899029180,14.72,171.48,171.42,30.4287]
[1721899029593,14.72,171.48,171.43,14.72]
[1721899029887,14.72,171.47,171.42,30.4287]
[1721899032084,14.72,171.47,171.42,15.7087]
[1721899032273,14.72,171.47,171.43,14.72]
[1721899032476,14.72,171.48,171.43,14.72]
[1721899032989,0.80845,171.49,171.38,45.0]
[1721899032990,14.72,171.47,171.38,45.0]
[1721899033163,14.72,171.47,171.42,14.72]
[1721899033369,0.80845,171.49,171.37,35.7605]
[1721899033370,14.72,171.46,171.41,14.72]
[1721899034703,14.72,171.45,171.4,14.72]
[1721899035374,32.28,171.41,171.32,6.3335]
[1721899035565,14.72,171.38,171.33,14.72]
[1721899035769,14.72,171.39,171.37,5.8353]
[1721899035986,14.72,171.41,171.38,5.8349]
[1721899036483,14.72,171.42,171.37,14.72]
[1721899037268,14.72,171.41,171.37,14.72]
[1721899037470,14.72,171.42,171.37,14.72]
[1721899037671,14.72,171.43,171.39,14.72]
[1721899038284,14.72,171.43,171.38,14.72]
[1721899039171,14.72,171.42,171.37,14.72]
[1721899039377,38.988,171.44,171.36,14.72]
[1721899039378,14.72,171.41,171.36,14.72]
[1721899040203,14.72,171.4,171.35,14.72]
[1721899040372,14.72,171.39,171.34,14.72]
[1721899040873,14.72,171.37,171.29,16.5988]
[1721899041190,14.72,171.35,171.29,31.3188]
[1721899041489,17.56,171.38,171.29,31.3188]
[1721899041490,14.72,171.34,171.29,31.3188]
[1721899042872,14.72,171.34,171.33,5.8366]
[1721899043992,14.72,171.34,171.31,5.8371]
[1721899044191,14.72,171.33,171.31,5.8371]
[1721899044393,14.72,171.33,171.32,5.837]
[1721899044810,17.56,171.37,171.32,5.837]
[1721899044987,14.72,171.33,171.28,14.72]
[1721899045314,14.72,171.33,171.32,5.837]
[1721899046684,20.5567,171.33,171.28,5.8382]
[1721899046906,14.72,171.31,171.25,14.72]
[1721899047088,17.56,171.35,171.29,5.838]
[1721899047089,14.72,171.3,171.29,5.838]
[1721899047298,14.72,171.3,171.24,44.84974802]
[1721899047479,14.72,171.3,171.28,5.8381]
[1721899047679,14.72,171.29,171.28,5.8381]
[1721899047912,14.72,171.3,171.29,5.8379]
[1721899048078,17.56,171.34,171.31,5.8373]
[1721899048274,14.72,171.32,171.31,5.8373]
[1721899048584,81.188,171.36,171.31,5.8373]
[1721899048585,22.308,171.36,171.31,5.8373]
[1721899048786,14.72,171.33,171.32,5.8369]
[1721899049802,14.72,171.34,171.33,5.8366]
[1721899050098,14.72,171.36,171.35,5.836]
[1721899050399,404.4964,171.42,171.37,5.8349]
[1721899050648,14.72,171.38,171.36,5.8355]
[1721899050905,14.72,171.37,171.36,5.8355]
[1721899051322,14.72,171.37,171.35,5.8359]
[1721899051512,14.72,171.36,171.35,5.8359]
[1721899052607,14.72,171.37,171.36,5.8355]
[1721899053191,14.72,171.37,171.34,5.836]
[1721899053400,17.56,171.41,171.35,5.8359]
[1721899053401,14.72,171.36,171.35,5.8359]
[1721899053604,15.2964,171.42,171.31,20.0]
[1721899053794,14.72,171.38,171.31,20.0]
[1721899054689,14.72,171.38,171.37,5.8351]
[1721899054993,20.555,171.38,171.33,5.8366]
[1721899055198,14.72,171.35,171.33,5.8366]
[1721899056408,14.72,171.34,171.33,5.8366]
[1721899058195,5.845,171.41,171.3,16.0063]
[1721899058196,38.6901,171.42,171.31,14.72]
[1721899058519,14.72,171.36,171.35,5.836]
[1721899058904,38.6901,171.42,171.37,5.835]
[1721899059107,14.72,171.38,171.37,5.835]
[1721899059298,14.72,171.38,171.36,5.8355]
[1721899059502,14.72,171.37,171.36,5.8355]
[1721899061093,14.72,171.37,171.3,16.0063]
[1721899061411,14.72,171.33,171.32,5.837]
[1721899062196,17.56,171.4,171.3,30.7263]
[1721899062391,14.72,171.36,171.35,5.836]
[1721899063115,14.72,171.37,171.36,5.8356]
[1721899065994,17.56,171.35,171.31,5.8373]
[1721899066206,14.72,171.32,171.26,14.72]
[1721899066404,14.72,171.31,171.25,30.6872]
[1721899066606,23.396,171.35,171.3,5.8374]
[1721899066911,23.396,171.35,171.25,15.9672]
[1721899066912,17.56,171.35,171.31,5.8373]
[1721899067101,23.396,171.35,171.31,5.8373]
[1721899067506,23.396,171.35,171.25,30.6872]
[1721899067507,23.396,171.35,171.3,5.8376]
[1721899067914,68.3964,171.34,171.3,5.8376]
[1721899068500,62.56,171.34,171.28,5.8383]
[1721899068725,62.56,171.34,171.26,14.72]
[1721899069825,68.3963,171.34,171.29,5.8379]
[1721899070009,14.72,171.31,171.29,5.8379]
[1721899072722,14.72,171.3,171.29,5.8379]
[1721899074018,14.72,171.3,171.26,5.8389]
[1721899074221,14.72,171.27,171.24,9.14428352]
[1721899074403,14.72,171.26,171.24,9.14428352]
[1721899074810,14.72,171.26,171.25,5.8394]
[1721899075611,14.72,171.26,171.2,14.72]
[1721899075807,14.72,171.24,171.23,5.84]
[1721899076013,14.72,171.24,171.22,5.8403]
[1721899076223,14.72,171.23,171.2,9.14673626]
[1721899076408,14.72,171.21,171.15,14.72]
[1721899076618,23.3998,171.24,171.19,5.8414]
[1721899076619,14.72,171.2,171.19,5.8414]
[1721899076822,14.72,171.2,171.15,9.1482598]